bitfinex/quotes_SOLUSD_20240606
["timestamp","ask_amount","ask_price","bid_price","bid_amount"]
[1717661826134,2.1461,172.4,172.39,2.99351816]
[1717661826343,2.1462,172.39,172.38,2.99351816]
[1717661826652,2.1464,172.38,172.37,2.99351816]
[1717661826832,2.4864,172.38,172.37,2.99351816]
[1717661827220,2.4864,172.38,172.36,2.99351816]
[1717661827420,0.34,172.37,172.36,2.99351816]
[1717661829143,0.34,172.37,172.35,2.99351816]
[1717661829358,0.34,172.37,172.35,5.14021816]
[1717661829557,0.34,172.38,172.36,2.99351816]
[1717661830368,2.4864,172.38,172.36,2.99351816]
[1717661830555,2.4864,172.38,172.35,2.99351816]
[1717661832574,0.34,172.38,172.35,2.99351816]
[1717661832739,0.34,172.37,172.35,2.99351816]
[1717661832945,2.4865,172.37,172.35,2.99351816]
[1717661833469,2.4865,172.37,172.34,2.99351816]
[1717661833966,0.34,172.37,172.34,2.99351816]
[1717661834277,2.4865,172.37,172.34,2.99351816]
[1717661835354,2.1467,172.36,172.34,2.99351816]
[1717661835560,2.4865,172.37,172.34,2.99351816]
[1717661836177,2.4865,172.37,172.33,2.99351816]
[1717661836677,2.4865,172.37,172.33,5.14051816]
[1717661838177,0.34,172.37,172.34,2.1468]
[1717661838674,0.17,172.37,172.34,5.14031816]
[1717661838878,2.1464,172.38,172.34,5.14031816]
[1717661839078,2.1464,172.38,172.35,2.99351816]
[1717661842572,2.1465,172.37,172.35,2.99351816]
[1717661843684,2.1465,172.37,172.34,2.99351816]
[1717661844285,2.1465,172.37,172.35,2.99351816]
[1717661855415,2.1466,172.36,172.35,2.99351816]
[1717661855788,2.1466,172.37,172.35,2.99351816]
[1717661856295,2.1466,172.36,172.35,2.99351816]
[1717661857012,4.293,172.37,172.35,2.99351816]
[1717661857308,2.1466,172.36,172.35,2.99351816]
[1717661857617,2.1466,172.36,172.32,8.16429552]
[1717661857618,2.1467,172.35,172.34,2.99351816]
[1717661859712,6.7802,172.35,172.34,2.99351816]
[1717661860125,2.1469,172.34,172.33,2.99351816]
[1717661860288,2.4869,172.34,172.33,2.99351816]
[1717661865013,0.34,172.34,172.33,2.99351816]
[1717661868109,0.34,172.34,172.3,8.16449552]
[1717661868314,0.34,172.34,172.33,3.01627935]
[1717661868492,0.34,172.34,172.3,8.16449552]
[1717661868691,0.34,172.34,172.33,3.01628633]
[1717661868913,0.34,172.34,172.3,8.16449552]
[1717661869609,0.34,172.34,172.33,3.01699316]
[1717661869807,2.1468,172.35,172.33,3.01699316]
[1717661870194,2.1468,172.35,172.34,3.01699316]
[1717661870502,2.4868,172.35,172.34,3.01699316]
[1717661873823,2.4868,172.35,172.31,6.01719552]
[1717661874022,2.1467,172.36,172.31,14.45749552]
[1717661874199,2.1466,172.37,172.32,2.1471]
[1717661874400,2.1466,172.37,172.35,3.01988928]
[1717661875210,19.3158,172.4,172.35,3.01988928]
[1717661875525,2.1464,172.38,172.36,3.01988928]
[1717661875723,2.1464,172.38,172.37,3.01988928]
[1717661876014,2.1464,172.38,172.34,6.01719552]
[1717661876224,2.1464,172.38,172.35,6.01719552]
[1717661880633,0.34,172.39,172.35,6.01719552]
[1717661880795,17.4,172.57,172.35,6.01719552]
[1717661880796,4.2914,172.44,172.35,6.01719552]
[1717661881003,2.1458,172.43,172.39,3.02063193]
[1717661881205,19.309,172.46,172.39,3.02063193]
[1717661881418,2.1458,172.43,172.39,3.02063193]
[1717661881727,2.1458,172.43,172.4,3.02063193]
[1717661882824,2.1458,172.43,172.41,3.02063193]
[1717661883127,2.1457,172.44,172.42,3.02063193]
[1717661883330,2.1457,172.44,172.41,3.02063193]
[1717661883505,2.1457,172.44,172.38,8.16349552]
[1717661883506,2.1457,172.44,172.42,3.02063193]
[1717661884003,0.34,172.43,172.42,3.02063193]
[1717661884503,0.34,172.43,172.41,3.02063193]
[1717661886919,2.4858,172.43,172.41,3.02063193]
[1717661888218,2.4858,172.43,172.4,3.02063193]
[1717661888621,2.4858,172.43,172.41,3.02063193]
[1717661889520,2.4858,172.43,172.4,3.02063193]
[1717661890322,2.1455,172.46,172.41,2.1459]
[1717661890712,2.1455,172.46,172.41,8.4669]
[1717661891603,0.34,172.45,172.41,6.321]
[1717661892221,0.34,172.45,172.41,8.467]
[1717661892629,0.34,172.45,172.41,6.321]
[1717661892819,0.34,172.45,172.41,8.4669]
[1717661894730,2.1453,172.47,172.42,10.29361751]
[1717661895025,2.1453,172.47,172.43,2.08304484]
[1717661895216,0.34,172.48,172.44,2.1456]
[1717661895420,0.34,172.48,172.45,2.08280325]
[1717661895619,0.34,172.48,172.46,4.22798247]
[1717661895620,0.17,172.48,172.46,4.22798247]
[1717661895949,2.1448,172.51,172.46,8.3351]
[1717661896229,2.1447,172.52,172.46,6.1898]
[1717661896431,2.1446,172.53,172.48,2.1451]
[1717661896613,2.1447,172.52,172.49,1.16341363]
[1717661896934,2.1446,172.53,172.47,2.1452]
[1717661897436,2.1447,172.52,172.47,2.1452]
[1717661899027,2.1448,172.51,172.46,8.3351]
[1717661900442,2.1447,172.52,172.46,8.3351]
[1717661900614,0.34,172.51,172.46,8.3351]
[1717661901157,2.4848,172.51,172.46,8.3351]
[1717661901637,2.4848,172.51,172.47,2.1453]
[1717661901835,0.34,172.51,172.47,2.1453]
[1717661902210,0.34,172.51,172.48,2.1451]
[1717661902422,0.34,172.52,172.48,2.1451]
[1717661904644,0.34,172.52,172.48,8.7117]
[1717661905005,0.34,172.52,172.49,2.145]
[1717661905233,0.34,172.53,172.49,2.145]
[1717661906613,0.34,172.53,172.49,8.3473]
[1717661907022,2.1444,172.54,172.49,8.3473]
[1717661909520,2.1445,172.54,172.49,8.3473]
[1717661909941,2.1445,172.53,172.49,8.3473]
[1717661910605,2.1445,172.53,172.49,6.2023]
[1717661911516,11.0615,172.55,172.49,6.2023]
[1717661911730,2.1446,172.53,172.49,6.2023]
[1717661913732,2.1446,172.53,172.49,8.3473]
[1717661915743,2.1444,172.54,172.49,8.3472]
[1717661915928,2.1444,172.54,172.5,2.1449]
[1717661916413,2.1444,172.54,172.49,8.3472]
[1717661917135,2.1444,172.54,172.49,2.1449]
[1717661917338,2.1445,172.53,172.5,6.1958]
[1717661918741,2.1446,172.52,172.5,6.1958]
[1717661918917,2.1446,172.52,172.48,8.5681]
[1717661919533,2.1446,172.52,172.49,6.423]
[1717661920026,2.1446,172.53,172.49,6.423]
[1717661920542,2.1446,172.52,172.47,8.5682]
[1717661922352,2.1446,172.52,172.48,2.1451]
[1717661925652,2.1446,172.53,172.48,2.1451]
[1717661925963,4.2889,172.54,172.48,2.1451]
[1717661926152,2.1446,172.52,172.48,2.1451]
[1717661928954,2.1446,172.52,172.49,2.145]
[1717661929455,2.4846,172.53,172.49,2.145]
[1717661929834,2.1446,172.52,172.48,2.145]
[1717661930151,2.1446,172.52,172.49,2.145]
[1717661930650,2.1446,172.52,172.48,2.1451]
[1717661935354,2.1446,172.52,172.49,2.145]
[1717661935662,2.1446,172.52,172.48,2.145]
[1717661936565,2.1446,172.52,172.49,2.145]
[1717661938360,2.1446,172.52,172.48,2.145]
[1717661938777,2.1446,172.52,172.49,2.145]
[1717661938980,2.1446,172.52,172.48,2.145]
[1717661940773,2.4848,172.51,172.47,5.16583193]
[1717661940935,2.1448,172.51,172.47,5.16583193]
[1717661941645,2.1448,172.51,172.48,2.1451]
[1717661943365,0.34,172.53,172.51,2.1447]
[1717661943554,2.1445,172.53,172.5,2.1448]
[1717661944661,2.1445,172.53,172.48,9.45603193]
[1717661944662,2.1445,172.53,172.49,2.1449]
[1717661944865,2.1445,172.53,172.49,5.16553193]
[1717661945640,2.1447,172.52,172.49,3.02063193]
[1717661947471,2.1447,172.52,172.5,3.02063193]
[1717661948685,2.4844,172.54,172.5,3.02063193]
[1717661948841,2.4844,172.54,172.5,5.16543193]
[1717661949168,2.4844,172.54,172.51,3.02063193]
[1717661949460,0.34,172.54,172.51,5.16533193]
[1717661949662,2.1444,172.55,172.51,5.16533193]
[1717661949970,2.1444,172.54,172.51,3.02063193]
[1717661950465,2.1445,172.53,172.51,3.02063193]
[1717661950768,2.1444,172.54,172.51,3.02063193]
[1717661950968,2.1445,172.53,172.51,3.02063193]
[1717661951852,2.1443,172.55,172.51,5.16533193]
[1717661952166,0.17,172.56,172.51,3.02063193]
[1717661952373,2.1442,172.56,172.52,2.1446]
[1717661952673,0.17,172.57,172.52,5.18523232]
[1717661952674,2.1441,172.57,172.52,5.18523232]
[1717661952868,2.1439,172.58,172.54,2.1443]
[1717661953050,2.1439,172.58,172.55,2.16422404]
[1717661953363,2.144,172.57,172.55,2.16422404]
[1717661953547,2.1439,172.58,172.55,2.16422404]
[1717661955487,2.1439,172.58,172.56,2.16372236]
[1717661956851,2.1439,172.58,172.54,4.46191124]
[1717661957469,4.2876,172.59,172.52,3.02063193]
[1717661957767,2.1442,172.56,172.52,5.16523193]
[1717661958162,2.1442,172.56,172.53,2.1445]
[1717661958474,2.1441,172.57,172.53,2.1445]
[1717661959044,4.2879,172.58,172.52,3.02063193]
[1717661959279,2.1443,172.55,172.52,3.02063193]
[1717661959772,2.1443,172.55,172.51,5.16533193]
[1717661959973,2.1443,172.55,172.52,2.1446]
[1717661960280,0.34,172.57,172.51,3.02063193]
[1717661960576,2.1446,172.52,172.49,3.02063193]
[1717661960764,2.145,172.5,172.48,3.02063193]
[1717661961153,2.145,172.5,172.47,3.02063193]
[1717661961376,2.1448,172.51,172.47,5.16583193]
[1717661962858,10.7233,172.52,172.47,3.02063193]
[1717661963058,2.1449,172.5,172.46,5.16593193]
[1717661964879,2.145,172.49,172.46,5.16593193]
[1717661965486,2.1449,172.5,172.46,5.16603193]
[1717661965695,2.145,172.49,172.46,3.02063193]
[1717661967472,2.145,172.49,172.46,5.16603193]
[1717661967759,0.34,172.51,172.46,5.16603193]
[1717661968080,2.1449,172.5,172.46,5.16603193]
[1717661974579,2.1449,172.5,172.47,2.1452]
[1717661976475,2.06644319,172.5,172.47,2.1452]
[1717661979585,2.4848,172.51,172.47,2.1452]
[1717661980409,2.1449,172.5,172.47,2.1452]
[1717661983714,2.145,172.49,172.46,2.1453]
[1717661984013,2.145,172.49,172.46,5.16593193]
[1717661984589,2.145,172.49,172.46,2.1453]
[1717661985683,2.145,172.49,172.46,5.16593193]
[1717661986296,2.145,172.49,172.46,2.1453]
[1717661989399,2.1449,172.5,172.47,2.1452]
[1717661990387,2.145,172.49,172.46,11.50183193]
[1717661990708,2.145,172.49,172.46,8.4812]
[1717661992119,2.145,172.49,172.46,11.50183193]
[1717661992913,2.145,172.5,172.46,11.50183193]
[1717661993613,4.6296,172.51,172.47,6.4313]
[1717661993914,2.1449,172.5,172.47,6.4313]
[1717661994296,2.145,172.49,172.47,6.4313]
[1717661995193,2.1449,172.5,172.47,8.5765]
[1717661995407,2.145,172.49,172.47,6.4313]
[1717662001215,11.064,172.51,172.47,6.4313]
[1717662001421,2.1451,172.49,172.47,6.4313]
[1717662001615,2.1451,172.48,172.47,6.4313]
[1717662001815,4.2899,172.5,172.45,5.16613193]
[1717662002007,2.1452,172.48,172.45,5.16613193]
[1717662002809,2.1452,172.48,172.45,2.1455]
[1717662002991,2.1452,172.48,172.45,5.16613193]
[1717662003403,2.1451,172.49,172.45,11.45393193]
[1717662004004,2.1448,172.51,172.48,2.1451]
[1717662004595,2.1444,172.55,172.51,2.1447]
[1717662004795,2.1444,172.55,172.52,1.13554713]
[1717662004796,2.1443,172.55,172.52,1.13554713]
[1717662005019,2.1443,172.55,172.51,8.4325]
[1717662005326,2.1442,172.56,172.52,2.1446]
[1717662005623,2.1442,172.56,172.53,7.44065508]
[1717662005999,15.0061,172.6,172.53,9.58515508]
[1717662006203,2.1441,172.57,172.53,7.44065508]
[1717662006515,2.1439,172.58,172.54,2.1444]
[1717662006720,2.1439,172.58,172.55,1.15355933]
[1717662007112,2.144,172.57,172.55,1.15355933]
[1717662008004,2.144,172.57,172.54,2.1444]
[1717662009116,2.144,172.57,172.53,8.4322]
[1717662011028,2.1441,172.56,172.53,6.2878]
[1717662012105,2.1441,172.56,172.53,8.4323]
[1717662012817,2.1441,172.57,172.53,8.4323]
[1717662013432,2.1441,172.56,172.53,8.4323]
[1717662014408,2.1441,172.57,172.53,8.4323]
[1717662014705,2.144,172.58,172.54,8.6028]
[1717662015024,2.144,172.58,172.55,6.4585]
[1717662018231,2.144,172.57,172.55,6.4585]
[1717662024932,2.144,172.58,172.55,6.4585]
[1717662029021,2.144,172.57,172.55,6.4585]
[1717662030554,2.144,172.58,172.55,6.4585]
[1717662033750,10.98282573,172.64,172.53,6.2437]
[1717662033934,2.1442,172.56,172.53,6.2437]
[1717662034134,2.1441,172.57,172.53,8.3882]
[1717662035963,2.1441,172.57,172.54,2.1444]
[1717662038334,2.144,172.58,172.54,2.1444]
[1717662039363,2.1441,172.57,172.53,8.3881]
[1717662039658,2.1442,172.56,172.51,4.2895]
[1717662039834,2.1442,172.56,172.51,30.798]
[1717662040035,2.1441,172.57,172.53,2.1445]
[1717662041537,2.1441,172.57,172.54,2.1444]
[1717662041866,2.144,172.58,172.54,2.1444]
[1717662043951,2.144,172.57,172.53,2.1445]
[1717662044335,2.144,172.57,172.54,2.1444]
[1717662044937,2.1439,172.58,172.54,2.1444]
[1717662045438,2.144,172.57,172.53,2.1444]
[1717662045861,2.144,172.58,172.54,2.1444]
[1717662046756,0.17,172.57,172.5,24.47433193]
[1717662046955,2.1443,172.55,172.51,2.1447]
[1717662047351,2.1445,172.54,172.5,2.1449]
[1717662047549,4.2884,172.56,172.51,2.1447]
[1717662047550,0.34,172.53,172.51,2.1447]
[1717662047853,0.34,172.53,172.5,2.1448]
[1717662048654,0.34,172.53,172.48,11.80983193]
[1717662048965,2.4846,172.53,172.49,2.145]
[1717662049150,2.4846,172.53,172.48,6.6442]
[1717662049151,2.1448,172.51,172.48,6.6442]
[1717662049355,2.1447,172.52,172.48,8.7893]
[1717662049765,2.4846,172.53,172.49,2.145]
[1717662050470,2.1446,172.52,172.48,8.7893]
[1717662050648,2.1446,172.52,172.48,11.8052759]
[1717662050845,2.1446,172.52,172.48,5.1610759]
[1717662051081,2.1446,172.52,172.48,2.1451]
[1717662051570,2.4845,172.53,172.49,2.145]
[1717662052281,2.1446,172.52,172.48,2.145]
[1717662053551,2.1446,172.52,172.49,2.145]
[1717662053965,2.4846,172.53,172.49,2.145]
[1717662054141,2.1446,172.52,172.49,2.145]
[1717662054351,2.1446,172.52,172.48,5.1609759]
[1717662054867,2.1446,172.52,172.49,2.145]
[1717662055168,2.4846,172.53,172.49,2.145]
[1717662056051,2.1447,172.52,172.48,5.1610759]
[1717662058945,2.1447,172.52,172.48,11.4756759]
[1717662059153,2.4846,172.53,172.49,8.4596]
[1717662060162,2.4846,172.53,172.5,6.264]
[1717662060376,2.1446,172.53,172.5,6.264]
[1717662061151,2.1446,172.53,172.49,5.1609759]
[1717662061445,2.1446,172.53,172.49,11.6977759]
[1717662061772,2.1445,172.54,172.5,2.1449]
[1717662062149,4.2886,172.55,172.5,2.1449]
[1717662062478,2.1442,172.56,172.52,2.1446]
[1717662062851,2.1442,172.56,172.53,1.01276301]
[1717662063378,2.1443,172.55,172.53,1.01276301]
[1717662064269,2.1444,172.54,172.51,8.7861]
[1717662065152,2.1444,172.54,172.5,3.0159759]
[1717662065153,2.1444,172.54,172.5,5.1607759]
[1717662065377,2.1445,172.53,172.5,3.0159759]
[1717662065578,4.7113121,172.61,172.49,3.0159759]
[1717662065776,2.1449,172.5,172.49,3.0159759]
[1717662066100,2.145,172.49,172.48,3.0159759]
[1717662066374,2.145,172.5,172.47,3.0159759]
[1717662067378,2.145,172.5,172.47,5.1611759]
[1717662067579,2.145,172.5,172.47,2.1452]
[1717662068077,2.145,172.5,172.46,5.1612759]
[1717662069479,2.1448,172.51,172.47,2.1452]
[1717662069771,2.1446,172.53,172.49,2.1449]
[1717662070273,2.1446,172.53,172.48,6.591]
[1717662070274,4.2886,172.56,172.48,9.6069759]
[1717662070456,2.1443,172.55,172.51,2.1447]
[1717662070848,4.2886,172.56,172.51,2.1447]
[1717662070849,2.1444,172.54,172.51,2.1447]
[1717662071366,2.1444,172.54,172.5,2.1448]
[1717662075584,2.1445,172.53,172.5,2.1448]
[1717662075961,2.1445,172.53,172.49,5.1608759]
[1717662076162,2.1445,172.53,172.49,11.3720759]
[1717662076381,2.1445,172.53,172.5,3.30705954]
[1717662076564,2.1445,172.53,172.5,1.16215954]
[1717662077193,2.1445,172.53,172.49,11.3721759]
[1717662077784,2.1445,172.53,172.5,6.3134]
[1717662078600,6.4332,172.55,172.49,3.0159759]
[1717662078889,2.1447,172.52,172.49,3.0159759]
[1717662079190,2.1447,172.52,172.48,5.1610759]
[1717662080402,2.1447,172.52,172.49,3.0159759]
[1717662080864,2.1446,172.53,172.49,11.1929759]
[1717662081062,2.1446,172.53,172.5,3.0159759]
[1717662081290,2.1446,172.53,172.5,5.1608759]
[1717662082972,2.1446,172.53,172.5,3.0159759]
[1717662087113,2.1446,172.53,172.51,3.0159759]
[1717662090291,2.1446,172.53,172.52,6.1227]
[1717662093603,2.1446,172.52,172.51,3.0159759]
[1717662095486,2.1448,172.51,172.5,3.0159759]
[1717662097002,2.1447,172.52,172.5,3.0159759]
[1717662098897,2.1448,172.51,172.5,3.0159759]
[1717662099591,4.2896,172.51,172.48,3.0159759]
[1717662099794,2.145,172.5,172.48,3.0159759]
[1717662101111,2.145,172.49,172.48,3.0159759]
[1717662101411,2.145,172.5,172.48,3.0159759]
[1717662102294,2.145,172.49,172.48,3.0159759]
[1717662102711,2.145,172.49,172.47,3.0159759]
[1717662103009,2.145,172.49,172.48,3.0159759]
[1717662103192,6.4341,172.52,172.48,3.0159759]
[1717662103193,2.1449,172.5,172.48,3.0159759]
[1717662103811,4.2893,172.52,172.48,3.0159759]
[1717662103989,8.5786,172.53,172.48,3.0159759]
[1717662103990,2.1446,172.53,172.48,3.0159759]
[1717662104196,2.1446,172.53,172.49,11.2575759]
[1717662104715,2.1446,172.53,172.5,1.15861176]
[1717662104900,2.1446,172.52,172.5,1.15861176]
[1717662106102,2.1446,172.52,172.5,4.17458766]
[1717662106790,2.1446,172.52,172.51,3.0159759]
[1717662107721,2.1448,172.51,172.5,3.0159759]
[1717662109496,2.1448,172.51,172.49,3.0159759]
[1717662109902,4.2891,172.53,172.49,3.0159759]
[1717662109903,2.1449,172.5,172.49,3.0159759]
[1717662110917,2.1448,172.51,172.49,3.0159759]
[1717662111306,2.1447,172.52,172.49,3.0159759]
[1717662112118,2.1448,172.51,172.49,3.0159759]
[1717662112416,19.3001,172.54,172.49,3.0159759]
[1717662113297,19.3001,172.54,172.5,3.0159759]
[1717662114019,2.1448,172.51,172.49,3.0159759]
[1717662114922,2.1448,172.51,172.5,3.0159759]
[1717662122745,2.1449,172.5,172.49,3.0159759]
[1717662126813,2.1448,172.51,172.49,3.0159759]
[1717662127015,2.1448,172.51,172.46,6.03195181]
[1717662127016,2.1447,172.52,172.5,3.0159759]
[1717662131243,2.1448,172.51,172.5,3.0159759]
[1717662134532,2.1449,172.5,172.49,3.0159759]
[1717662136827,2.1448,172.51,172.49,3.0159759]
[1717662137527,2.1449,172.5,172.49,3.0159759]
[1717662139549,2.1448,172.51,172.49,3.0159759]
[1717662139843,2.1449,172.5,172.49,3.0159759]
[1717662140052,4.2894,172.52,172.49,3.0159759]
[1717662140353,2.1448,172.51,172.5,3.0159759]
[1717662149361,2.1447,172.52,172.5,3.0159759]
[1717662150364,2.1446,172.53,172.5,3.0159759]
[1717662150546,2.1446,172.53,172.49,2.145]
[1717662150547,2.1446,172.53,172.51,3.0159759]
[1717662151359,2.1446,172.52,172.51,3.0159759]
[1717662169554,2.1446,172.52,172.49,14.44295181]
[1717662170275,2.1446,172.52,172.49,8.411]
[1717662172755,2.1446,172.52,172.49,6.266]
[1717662174675,2.1448,172.51,172.49,6.266]
[1717662175182,2.1448,172.51,172.48,8.17695181]
[1717662175363,2.1448,172.51,172.49,45.0]
[1717662178779,2.1447,172.52,172.49,47.145]
[1717662178982,2.1447,172.52,172.51,3.03074994]
[1717662179175,2.1447,172.52,172.49,47.145]
[1717662179359,10.7222,172.54,172.49,45.0]
[1717662179360,6.4337,172.53,172.49,45.0]
[1717662179559,2.1448,172.51,172.48,2.1451]
[1717662179779,2.1448,172.51,172.48,45.0]
[1717662180181,2.1448,172.51,172.48,47.1451]
[1717662180585,2.1449,172.5,172.47,6.03195181]
[1717662180760,4.2895,172.52,172.47,6.03195181]
[1717662180965,12.8681,172.52,172.51,3.03087273]
[1717662181162,2.1449,172.5,172.49,3.03087273]
[1717662183768,2.1448,172.51,172.49,3.03087273]
[1717662186299,2.1447,172.52,172.49,3.03087273]
[1717662187003,2.1447,172.52,172.49,2.93087273]
[1717662187181,2.1448,172.51,172.48,2.1451]
[1717662187994,2.1448,172.51,172.47,2.1452]
[1717662188475,2.1448,172.51,172.48,2.1451]
[1717662192099,2.1447,172.52,172.48,2.1451]
[1717662192794,2.1448,172.51,172.48,2.1451]
[1717662194005,2.1447,172.52,172.48,2.1451]
[1717662196097,2.1448,172.51,172.48,2.1451]
[1717662207106,2.145,172.5,172.47,2.1452]
[1717662209517,2.145,172.49,172.46,2.1453]
[1717662209896,2.1449,172.5,172.47,2.1452]
[1717662211512,2.1449,172.5,172.46,2.1453]
[1717662212915,6.1975,172.57,172.45,6.03195181]
[1717662213212,2.1453,172.47,172.44,6.03195181]
[1717662213526,2.1453,172.47,172.44,8.17755181]
[1717662213818,2.1452,172.48,172.44,2.1456]
[1717662214322,2.1453,172.47,172.44,2.1456]
[1717662214495,19.3047,172.5,172.44,2.1456]
[1717662214698,2.1452,172.48,172.44,2.1456]
[1717662216530,2.1453,172.47,172.44,2.1456]
[1717662216702,2.1452,172.48,172.44,2.1456]
[1717662217900,2.1452,172.48,172.45,2.1455]
[1717662219321,2.1452,172.48,172.44,2.1455]
[1717662219623,2.1452,172.48,172.45,2.1455]
[1717662220912,2.1452,172.48,172.44,2.1456]
[1717662221124,2.1452,172.48,172.45,2.1455]
[1717662222023,6.7744,172.51,172.41,18.51435181]
[1717662222024,0.34,172.51,172.41,12.07625181]
[1717662222203,2.1456,172.45,172.41,14.22215181]
[1717662222841,2.1456,172.45,172.41,8.1902]
[1717662223029,12.8724,172.47,172.41,8.1902]
[1717662223215,2.1456,172.45,172.42,2.1459]
[1717662224318,2.1456,172.45,172.41,2.1459]
[1717662226033,2.1456,172.45,172.42,2.1459]
[1717662226334,2.1456,172.45,172.41,2.1459]
[1717662226821,4.2908,172.47,172.41,2.1459]
[1717662227022,2.1456,172.45,172.41,2.1459]
[1717662227722,2.1456,172.44,172.41,2.1459]
[1717662228316,2.1456,172.44,172.4,2.1461]
[1717662228833,11.0673,172.46,172.39,12.05245181]
[1717662229028,11.0673,172.46,172.4,2.1461]
[1717662229234,2.1458,172.43,172.39,2.1462]
[1717662229425,2.1459,172.42,172.39,2.1462]
[1717662229937,2.1458,172.43,172.39,2.1462]
[1717662230436,2.1459,172.42,172.39,2.1462]
[1717662230937,2.1458,172.43,172.39,2.1462]
[1717662233633,2.1459,172.42,172.39,2.1462]
[1717662233841,2.1458,172.43,172.39,2.1462]
[1717662235249,2.146,172.41,172.38,2.1463]
[1717662235544,2.146,172.41,172.37,8.17845181]
[1717662235745,2.146,172.41,172.37,2.1465]
[1717662237649,2.146,172.41,172.38,2.1463]
[1717662240329,2.146,172.42,172.38,2.1463]
[1717662242755,2.146,172.41,172.37,2.1465]
[1717662243046,2.1461,172.4,172.37,2.1465]
[1717662243467,2.1461,172.41,172.37,2.1465]
[1717662243958,2.1461,172.41,172.38,2.1464]
[1717662245738,2.1461,172.41,172.37,2.1464]
[1717662247635,2.1461,172.41,172.38,2.1464]
[1717662247830,2.1459,172.42,172.38,2.1464]
[1717662248133,12.8725,172.46,172.4,2.1461]
[1717662248332,2.1454,172.46,172.42,2.1458]
[1717662249336,2.1455,172.45,172.42,2.1458]
[1717662249543,2.1455,172.45,172.41,2.1459]
[1717662249746,2.1455,172.45,172.41,8.7104]
[1717662250767,2.1456,172.44,172.41,8.7104]
[1717662251234,2.1456,172.45,172.41,8.7104]
[1717662253575,2.1456,172.44,172.41,6.5645]
[1717662254051,2.1456,172.44,172.4,2.1461]
[1717662254972,2.1457,172.43,172.4,2.1461]
[1717662257060,2.1457,172.44,172.4,2.1461]
[1717662259372,2.1457,172.44,172.41,2.146]
[1717662260071,2.1457,172.44,172.4,2.1461]
[1717662260573,2.1458,172.43,172.4,2.1461]
[1717662261578,2.1457,172.44,172.4,2.1461]
[1717662262266,2.1458,172.43,172.39,2.1462]
[1717662262590,2.1461,172.41,172.37,8.17835181]
[1717662262888,2.1461,172.41,172.38,2.1464]
[1717662263368,2.1459,172.42,172.38,2.1464]
[1717662263572,2.146,172.41,172.38,2.1464]
[1717662264277,2.146,172.41,172.37,2.1464]
[1717662267476,2.146,172.41,172.38,2.1464]
[1717662267867,2.146,172.41,172.37,2.1464]
[1717662268067,2.1461,172.4,172.36,6.03195181]
[1717662268887,2.1461,172.4,172.37,2.1465]
[1717662270078,2.1461,172.4,172.36,8.17855181]
[1717662271091,2.1461,172.41,172.37,2.1465]
[1717662272872,2.1461,172.41,172.38,0.60610335]
[1717662274493,2.1461,172.41,172.38,2.31982888]
[1717662274793,2.1461,172.4,172.38,2.31982888]
[1717662281796,2.1462,172.39,172.38,2.31982888]
[1717662284202,2.1462,172.39,172.37,6.03195181]
[1717662284394,2.1462,172.39,172.38,2.31987538]
[1717662285000,2.1462,172.4,172.37,6.03195181]
[1717662285687,2.1461,172.41,172.38,6.03195181]
[1717662285888,2.1461,172.4,172.38,6.03195181]
[1717662288805,2.1461,172.41,172.38,6.03195181]
[1717662289804,2.1461,172.4,172.38,6.03195181]
[1717662290119,2.1461,172.4,172.37,6.03195181]
[1717662291686,2.1463,172.39,172.37,6.03195181]
[1717662292102,2.1463,172.39,172.36,8.17855181]
[1717662292298,2.1462,172.4,172.37,6.03195181]
[1717662293022,2.1462,172.4,172.36,8.17855181]